[Event "Late-Titled-Tuesday-Blitz-January-30-2024"]
[Site "Chess.com"]
[Date "2024.01.30"]
[Round "9"]
[White "MrTattaglia"]
[Black "Genghis_K"]
[Result "1-0"]
[WhiteElo "2966"]
[BlackElo "2843"]
[TimeControl "180+1"]
[EndTime "15:44:51 PST"]
[Termination "MrTattaglia won by checkmate"]

1. c4 {[%clk 0:02:54.9]} 1... e5 {[%clk 0:02:55.6]} 2. Nc3 {[%clk 0:02:51.4]}
2... Bb4 {[%clk 0:02:55.3]} 3. Nf3 {[%clk 0:02:49.9]} 3... Bxc3 {[%clk
0:02:51.1]} 4. dxc3 {[%clk 0:02:50.4]} 4... d6 {[%clk 0:02:51.5]} 5. c5 {[%clk
0:02:48.6]} 5... e4 {[%clk 0:02:47.4]} 6. Qa4+ {[%clk 0:02:47.2]} 6... Kf8
{[%clk 0:02:40.8]} 7. Qxe4 {[%clk 0:02:46]} 7... dxc5 {[%clk 0:02:41]} 8. Be3
{[%clk 0:02:40.2]} 8... Nd7 {[%clk 0:02:37.6]} 9. O-O-O {[%clk 0:02:39.2]} 9...
Qe7 {[%clk 0:02:36.2]} 10. Qf4 {[%clk 0:02:36.9]} 10... Nb6 {[%clk 0:02:27.2]}
11. Qe5 {[%clk 0:02:20.9]} 11... f6 {[%clk 0:02:04]} 12. Qxc5 {[%clk 0:02:14.6]}
12... Be6 {[%clk 0:02:01.8]} 13. b3 {[%clk 0:02:09.2]} 13... Kf7 {[%clk
0:01:58.1]} 14. h3 {[%clk 0:01:52.7]} 14... a5 {[%clk 0:01:55.3]} 15. Kb2 {[%clk
0:01:23.3]} 15... a4 {[%clk 0:01:52.5]} 16. Qxe7+ {[%clk 0:01:21.2]} 16... Nxe7
{[%clk 0:01:52.5]} 17. Bxb6 {[%clk 0:01:21.8]} 17... cxb6 {[%clk 0:01:52.6]} 18.
e4 {[%clk 0:01:22.4]} 18... Rhc8 {[%clk 0:01:47.3]} 19. Nd4 {[%clk 0:01:20.5]}
19... axb3 {[%clk 0:01:43.8]} 20. axb3 {[%clk 0:01:19.6]} 20... Nc6 {[%clk
0:01:39.3]} 21. Nb5 {[%clk 0:01:17.4]} 21... Ke7 {[%clk 0:01:39.1]} 22. Be2
{[%clk 0:01:11]} 22... Ra5 {[%clk 0:01:39.1]} 23. Ra1 {[%clk 0:01:03]} 23... Rd8
{[%clk 0:01:38.8]} 24. Rxa5 {[%clk 0:00:59.1]} 24... Rd2+ {[%clk 0:01:17.7]} 25.
Kc1 {[%clk 0:00:57.5]} 25... Rxe2 {[%clk 0:01:18.3]} 26. Ra3 {[%clk 0:00:56.2]}
26... Rxf2 {[%clk 0:01:14.5]} 27. g4 {[%clk 0:00:54.2]} 27... Ne5 {[%clk
0:01:12.5]} 28. Rd1 {[%clk 0:00:54.4]} 28... Bd7 {[%clk 0:00:59.5]} 29. Nd4
{[%clk 0:00:51.2]} 29... Rh2 {[%clk 0:00:55.9]} 30. Ra7 {[%clk 0:00:48.5]} 30...
Bc8 {[%clk 0:00:51.7]} 31. Nf5+ {[%clk 0:00:47.1]} 31... Ke6 {[%clk 0:00:13]}
32. Ra8 {[%clk 0:00:46.1]} 32... Bd7 {[%clk 0:00:11.5]} 33. Rf8 {[%clk
0:00:46.7]} 33... Ng6 {[%clk 0:00:05.7]} 34. Rd8 {[%clk 0:00:40.8]} 34... Bc6
{[%clk 0:00:05]} 35. Nxg7+ {[%clk 0:00:39.1]} 35... Ke5 {[%clk 0:00:05.7]} 36.
Nh5 {[%clk 0:00:32.6]} 36... Rxh3 {[%clk 0:00:03.6]} 37. Kb2 {[%clk 0:00:29]}
37... Rh2+ {[%clk 0:00:02.6]} 38. Ka3 {[%clk 0:00:28.7]} 38... Kxe4 {[%clk
0:00:02.5]} 39. Nxf6+ {[%clk 0:00:23.4]} 39... Kf4 {[%clk 0:00:03]} 40. Nd5+
{[%clk 0:00:16.3]} 40... Kxg4 {[%clk 0:00:02.2]} 41. Nxb6 {[%clk 0:00:15.7]}
41... Nf4 {[%clk 0:00:02.3]} 42. R8d4 {[%clk 0:00:14.5]} 42... Rf2 {[%clk
0:00:02]} 43. Nc4 {[%clk 0:00:13]} 43... h5 {[%clk 0:00:02.3]} 44. Ne5+ {[%clk
0:00:12.3]} 44... Kg3 {[%clk 0:00:02.8]} 45. Rg1+ {[%clk 0:00:11.6]} 45... Ng2
{[%clk 0:00:02.4]} 46. Rd3+ {[%clk 0:00:07.4]} 46... Kh2 {[%clk 0:00:02.7]} 47.
Rgd1 {[%clk 0:00:07]} 47... h4 {[%clk 0:00:03.3]} 48. Ng4# {[%clk 0:00:07]} 1-0

[Event "Late-Titled-Tuesday-Blitz-January-30-2024"]
[Site "Chess.com"]
[Date "2024.01.30"]
[Round "9"]
[White "el008"]
[Black "GaiozNigalidze"]
[Result "1-0"]
[WhiteElo "2535"]
[BlackElo "2691"]
[TimeControl "180+1"]
[EndTime "15:44:53 PST"]
[Termination "el008 won by checkmate"]

1. Nf3 {[%clk 0:03:00.9]} 1... Nf6 {[%clk 0:02:57.4]} 2. b3 {[%clk 0:03:00.6]}
2... g6 {[%clk 0:02:56.9]} 3. Bb2 {[%clk 0:03:01.2]} 3... Bg7 {[%clk 0:02:57.5]}
4. g3 {[%clk 0:03:01.1]} 4... O-O {[%clk 0:02:57.7]} 5. c4 {[%clk 0:03:01.7]}
5... d6 {[%clk 0:02:55.3]} 6. d4 {[%clk 0:03:01.6]} 6... Nbd7 {[%clk 0:02:52.1]}
7. d5 {[%clk 0:02:43.6]} 7... a5 {[%clk 0:02:50.3]} 8. a3 {[%clk 0:02:40.9]}
8... c6 {[%clk 0:02:48.3]} 9. Bg2 {[%clk 0:02:38.6]} 9... Qc7 {[%clk 0:02:42.5]}
10. O-O {[%clk 0:02:35.5]} 10... Nc5 {[%clk 0:02:39.4]} 11. Nc3 {[%clk
0:02:31.4]} 11... e5 {[%clk 0:02:33.2]} 12. dxe6 {[%clk 0:02:23.5]} 12... Bxe6
{[%clk 0:02:30.8]} 13. Nd4 {[%clk 0:02:21.1]} 13... Bd7 {[%clk 0:02:26.1]} 14.
e4 {[%clk 0:02:21.2]} 14... Rfe8 {[%clk 0:02:24.9]} 15. Re1 {[%clk 0:02:21.1]}
15... Ng4 {[%clk 0:02:19.4]} 16. h3 {[%clk 0:02:11.7]} 16... Ne5 {[%clk
0:02:19.2]} 17. Bf1 {[%clk 0:02:07.8]} 17... Qb6 {[%clk 0:01:48]} 18. Na2 {[%clk
0:01:35.1]} 18... a4 {[%clk 0:01:22.3]} 19. b4 {[%clk 0:01:33.8]} 19... Nb3
{[%clk 0:01:22.8]} 20. Nxb3 {[%clk 0:01:28.9]} 20... axb3 {[%clk 0:01:21.8]} 21.
Qxb3 {[%clk 0:01:29.6]} 21... Nf3+ {[%clk 0:01:22]} 22. Qxf3 {[%clk 0:01:27.2]}
22... Bxb2 {[%clk 0:01:22.2]} 23. Rab1 {[%clk 0:01:10.5]} 23... Rxa3 {[%clk
0:01:21.6]} 24. Qe2 {[%clk 0:01:11]} 24... Rxg3+ {[%clk 0:00:35.3]} 25. Kh2
{[%clk 0:01:03.3]} 25... Rxe4 {[%clk 0:00:34.9]} 26. Qxb2 {[%clk 0:00:42.8]}
26... Rf3 {[%clk 0:00:35.1]} 27. c5 {[%clk 0:00:36.8]} 27... Qc7 {[%clk
0:00:26.5]} 28. Rxe4 {[%clk 0:00:35.4]} 28... d5+ {[%clk 0:00:26.6]} 29. Qe5
{[%clk 0:00:33.8]} 29... Qd8 {[%clk 0:00:20.2]} 30. Rf4 {[%clk 0:00:26.1]} 30...
Ra3 {[%clk 0:00:16]} 31. Rb2 {[%clk 0:00:22]} 31... Be6 {[%clk 0:00:16.1]} 32.
Bg2 {[%clk 0:00:20.1]} 32... Qa8 {[%clk 0:00:16.1]} 33. Nc1 {[%clk 0:00:19.9]}
33... Ra1 {[%clk 0:00:15.9]} 34. Ne2 {[%clk 0:00:20]} 34... Re1 {[%clk
0:00:15.4]} 35. Qc3 {[%clk 0:00:19.6]} 35... Rd1 {[%clk 0:00:14.8]} 36. Qc2
{[%clk 0:00:19.4]} 36... Re1 {[%clk 0:00:14.4]} 37. Ng3 {[%clk 0:00:18.8]} 37...
d4 {[%clk 0:00:13.1]} 38. Qd2 {[%clk 0:00:19]} 38... Ra1 {[%clk 0:00:11.1]} 39.
Qxd4 {[%clk 0:00:19.3]} 39... Qb8 {[%clk 0:00:11]} 40. Rd2 {[%clk 0:00:19.4]}
40... h5 {[%clk 0:00:08.8]} 41. Qd8+ {[%clk 0:00:19.6]} 41... Qxd8 {[%clk
0:00:09.4]} 42. Rxd8+ {[%clk 0:00:20.4]} 42... Kg7 {[%clk 0:00:10.1]} 43. Ne4
{[%clk 0:00:18.8]} 43... Rb1 {[%clk 0:00:08.9]} 44. Nd6 {[%clk 0:00:19.2]} 44...
g5 {[%clk 0:00:09]} 45. Rd4 {[%clk 0:00:19.2]} 45... g4 {[%clk 0:00:09.3]} 46.
hxg4 {[%clk 0:00:19.4]} 46... hxg4 {[%clk 0:00:09.6]} 47. Nxb7 {[%clk
0:00:20.1]} 47... Kf6 {[%clk 0:00:10.1]} 48. Bxc6 {[%clk 0:00:20.4]} 48... Ke5
{[%clk 0:00:10.4]} 49. Bg2 {[%clk 0:00:20.4]} 49... f5 {[%clk 0:00:10.8]} 50.
Na5 {[%clk 0:00:20.2]} 50... f4 {[%clk 0:00:10.9]} 51. Nc6+ {[%clk 0:00:20.5]}
51... Kf5 {[%clk 0:00:11.4]} 52. Rf8+ {[%clk 0:00:20.5]} 52... Kg5 {[%clk
0:00:11.8]} 53. Rdxf4 {[%clk 0:00:21.1]} 53... Rb3 {[%clk 0:00:10.8]} 54. Nd8
{[%clk 0:00:20.9]} 54... Bd5 {[%clk 0:00:08.9]} 55. Bxd5 {[%clk 0:00:20.7]}
55... g3+ {[%clk 0:00:09.4]} 56. fxg3 {[%clk 0:00:20.6]} 56... Rb2+ {[%clk
0:00:09.8]} 57. Kh3 {[%clk 0:00:20.3]} 57... Rb1 {[%clk 0:00:10.3]} 58. Rg8+
{[%clk 0:00:20]} 58... Kh5 {[%clk 0:00:10.1]} 59. Rh4# {[%clk 0:00:20.9]} 1-0

[Event "Late-Titled-Tuesday-Blitz-January-30-2024"]
[Site "Chess.com"]
[Date "2024.01.30"]
[Round "9"]
[White "Gryffindorac8"]
[Black "DraningWaterHi"]
[Result "0-1"]
[WhiteElo "2367"]
[BlackElo "2136"]
[TimeControl "180+1"]
[EndTime "15:44:53 PST"]
[Termination "DraningWaterHi won by checkmate"]

1. d4 {[%clk 0:02:46.2]} 1... Nf6 {[%clk 0:02:58.7]} 2. c4 {[%clk 0:02:46.2]}
2... g6 {[%clk 0:02:56.5]} 3. Nc3 {[%clk 0:02:45.6]} 3... Bg7 {[%clk 0:02:57.1]}
4. e4 {[%clk 0:02:45.6]} 4... d6 {[%clk 0:02:57.7]} 5. Nf3 {[%clk 0:02:45]} 5...
O-O {[%clk 0:02:56.6]} 6. h3 {[%clk 0:02:45.1]} 6... e5 {[%clk 0:02:57.1]} 7. d5
{[%clk 0:02:45]} 7... a5 {[%clk 0:02:56.7]} 8. Be3 {[%clk 0:02:44.6]} 8... Na6
{[%clk 0:02:57.2]} 9. g4 {[%clk 0:02:43.5]} 9... Nc5 {[%clk 0:02:57.3]} 10. Nd2
{[%clk 0:02:43.3]} 10... h5 {[%clk 0:02:54]} 11. Be2 {[%clk 0:02:36.6]} 11...
Kh7 {[%clk 0:02:51.2]} 12. gxh5 {[%clk 0:02:29.7]} 12... b6 {[%clk 0:02:44.1]}
13. hxg6+ {[%clk 0:02:20.6]} 13... fxg6 {[%clk 0:02:45]} 14. Qc2 {[%clk
0:02:13.5]} 14... Nh5 {[%clk 0:02:41.9]} 15. Bxh5 {[%clk 0:02:07.8]} 15... gxh5
{[%clk 0:02:42.8]} 16. O-O-O {[%clk 0:02:07.1]} 16... Bh6 {[%clk 0:02:39.7]} 17.
Bxh6 {[%clk 0:01:55.2]} 17... Kxh6 {[%clk 0:02:39.2]} 18. Nb3 {[%clk 0:01:51]}
18... Qg5+ {[%clk 0:02:37]} 19. Kb1 {[%clk 0:01:48]} 19... Qf4 {[%clk
0:02:36.9]} 20. Nxc5 {[%clk 0:01:45.1]} 20... bxc5 {[%clk 0:02:36.4]} 21. Rdg1
{[%clk 0:01:22.4]} 21... Bd7 {[%clk 0:02:33.6]} 22. Ne2 {[%clk 0:00:59.7]} 22...
Qf3 {[%clk 0:02:24.6]} 23. Rg3 {[%clk 0:00:22.5]} 23... Qxh1+ {[%clk 0:02:24]}
24. Ng1 {[%clk 0:00:18.6]} 24... Rf4 {[%clk 0:02:22.9]} 25. Qe2 {[%clk
0:00:14.9]} 25... Raf8 {[%clk 0:02:19.5]} 26. f3 {[%clk 0:00:13.9]} 26... h4
{[%clk 0:02:14.9]} 27. Rg2 {[%clk 0:00:10.1]} 27... Bxh3 {[%clk 0:02:12.2]} 28.
Rh2 {[%clk 0:00:08.4]} 28... Qxg1+ {[%clk 0:02:12.3]} 29. Kc2 {[%clk 0:00:08.5]}
29... Bf1 {[%clk 0:02:10.6]} 30. Qd2 {[%clk 0:00:07.8]} 30... Bxc4 {[%clk
0:02:10.1]} 31. Rxh4+ {[%clk 0:00:07.6]} 31... Kg5 {[%clk 0:02:10]} 32. Rg4+
{[%clk 0:00:07.1]} 32... Qxg4 {[%clk 0:02:09.7]} 33. fxg4 {[%clk 0:00:07.5]}
33... Bxa2 {[%clk 0:01:58.4]} 34. Qxa5 {[%clk 0:00:07.4]} 34... Bc4 {[%clk
0:01:56.1]} 35. Kc3 {[%clk 0:00:07.5]} 35... Bf1 {[%clk 0:01:53.5]} 36. Qxc7
{[%clk 0:00:07.6]} 36... Rf3+ {[%clk 0:01:50.9]} 37. Kc2 {[%clk 0:00:08]} 37...
Rf2+ {[%clk 0:01:51.3]} 38. Kb3 {[%clk 0:00:07.8]} 38... c4+ {[%clk 0:01:50.1]}
39. Ka4 {[%clk 0:00:08.2]} 39... R8f6 {[%clk 0:01:48]} 40. Qe7 {[%clk 0:00:08]}
40... Kxg4 {[%clk 0:01:47.2]} 41. Qg7+ {[%clk 0:00:07.2]} 41... Kh3 {[%clk
0:01:46.4]} 42. Qh6+ {[%clk 0:00:07.4]} 42... Kg3 {[%clk 0:01:45.7]} 43. Qg5+
{[%clk 0:00:07.2]} 43... Kh2 {[%clk 0:01:43.7]} 44. Qh4+ {[%clk 0:00:07.3]}
44... Kg1 {[%clk 0:01:41.7]} 45. Qg5+ {[%clk 0:00:06.9]} 45... Bg2 {[%clk
0:01:41.3]} 46. Qc1+ {[%clk 0:00:06.5]} 46... Kh2 {[%clk 0:01:36.5]} 47. Qg5
{[%clk 0:00:05.8]} 47... R6f3 {[%clk 0:01:35.2]} 48. Qh4+ {[%clk 0:00:05.9]}
48... Bh3 {[%clk 0:01:35]} 49. Qe7 {[%clk 0:00:05.1]} 49... Rxb2 {[%clk
0:01:33.4]} 50. Qxd6 {[%clk 0:00:05.3]} 50... c3 {[%clk 0:01:33.4]} 51. Qxe5+
{[%clk 0:00:05.4]} 51... Kh1 {[%clk 0:01:33]} 52. Qd4 {[%clk 0:00:04.4]} 52...
Ra2+ {[%clk 0:01:31.2]} 53. Kb3 {[%clk 0:00:04.3]} 53... Rb2+ {[%clk 0:01:31.6]}
54. Ka4 {[%clk 0:00:03.8]} 54... Re2 {[%clk 0:01:24.6]} 55. Qd1+ {[%clk
0:00:03.9]} 55... Bf1 {[%clk 0:01:24.7]} 56. Qc1 {[%clk 0:00:03.8]} 56... c2
{[%clk 0:01:23.9]} 57. Kb4 {[%clk 0:00:03.7]} 57... Kg1 {[%clk 0:01:19]} 58. d6
{[%clk 0:00:04.6]} 58... Rxe4+ {[%clk 0:01:17.4]} 59. Kc5 {[%clk 0:00:04.8]}
59... Rc4+ {[%clk 0:01:17.3]} 60. Kb6 {[%clk 0:00:04.5]} 60... Rd4 {[%clk
0:01:14.9]} 61. Qg5+ {[%clk 0:00:04.6]} 61... Bg2 {[%clk 0:01:13.3]} 62. Qc5
{[%clk 0:00:04.6]} 62... Rd3 {[%clk 0:01:12]} 63. d7 {[%clk 0:00:03.9]} 63...
Kf1 {[%clk 0:01:10.7]} 64. Kc7 {[%clk 0:00:03.7]} 64... Rxd7+ {[%clk 0:01:10.2]}
65. Kc8 {[%clk 0:00:03.5]} 65... Rd2 {[%clk 0:01:03.4]} 66. Qf5+ {[%clk
0:00:03.6]} 66... Ke1 {[%clk 0:01:01.5]} 67. Qe5+ {[%clk 0:00:03.5]} 67... Kd1
{[%clk 0:01:01.3]} 68. Qh5+ {[%clk 0:00:03.3]} 68... Re2 {[%clk 0:00:58.1]} 69.
Qc5 {[%clk 0:00:02.9]} 69... c1=Q {[%clk 0:00:58]} 70. Kb8 {[%clk 0:00:02.8]}
70... Rd8+ {[%clk 0:00:56.4]} 71. Kc7 {[%clk 0:00:03]} 71... Qxc5+ {[%clk
0:00:55.8]} 72. Kxd8 {[%clk 0:00:03.9]} 72... Qd6+ {[%clk 0:00:55.4]} 73. Kc8
{[%clk 0:00:04.1]} 73... Re8# {[%clk 0:00:55.9]} 0-1

[Event "Late-Titled-Tuesday-Blitz-January-30-2024"]
[Site "Chess.com"]
[Date "2024.01.30"]
[Round "9"]
[White "lachesisQ"]
[Black "Polish_fighter3000"]
[Result "0-1"]
[WhiteElo "3093"]
[BlackElo "3052"]
[TimeControl "180+1"]
[EndTime "15:44:59 PST"]
[Termination "Polish_fighter3000 won on time"]

1. e4 {[%clk 0:03:00.9]} 1... c5 {[%clk 0:02:53.9]} 2. Nf3 {[%clk 0:03:00.8]}
2... d6 {[%clk 0:02:54.5]} 3. d4 {[%clk 0:03:01.7]} 3... cxd4 {[%clk 0:02:55.1]}
4. Nxd4 {[%clk 0:03:02.6]} 4... Nf6 {[%clk 0:02:55.5]} 5. Nc3 {[%clk 0:03:03.3]}
5... a6 {[%clk 0:02:56.2]} 6. Bd3 {[%clk 0:03:03.9]} 6... g6 {[%clk 0:02:52.8]}
7. f3 {[%clk 0:03:03.7]} 7... Nc6 {[%clk 0:02:52.6]} 8. Be3 {[%clk 0:03:00.1]}
8... Nxd4 {[%clk 0:02:52.4]} 9. Bxd4 {[%clk 0:03:00.3]} 9... Bh6 {[%clk
0:02:53.1]} 10. O-O {[%clk 0:02:52.3]} 10... e5 {[%clk 0:02:51.7]} 11. Bf2
{[%clk 0:02:51.6]} 11... Be6 {[%clk 0:02:50.8]} 12. a4 {[%clk 0:02:44]} 12...
Qa5 {[%clk 0:02:41.2]} 13. Kh1 {[%clk 0:02:41.7]} 13... O-O {[%clk 0:02:39.9]}
14. Be1 {[%clk 0:02:41.5]} 14... Qc7 {[%clk 0:02:29.6]} 15. a5 {[%clk
0:02:37.8]} 15... Bg5 {[%clk 0:02:14.2]} 16. Bf2 {[%clk 0:02:34.4]} 16... Rac8
{[%clk 0:02:08.1]} 17. Na4 {[%clk 0:02:32.2]} 17... d5 {[%clk 0:02:01]} 18. Nc5
{[%clk 0:02:28.9]} 18... Rfe8 {[%clk 0:01:38.4]} 19. Nxe6 {[%clk 0:02:25.2]}
19... Rxe6 {[%clk 0:01:39.3]} 20. exd5 {[%clk 0:02:07.2]} 20... Nxd5 {[%clk
0:01:39.1]} 21. Bxg6 {[%clk 0:01:58.3]} 21... hxg6 {[%clk 0:01:40]} 22. Qxd5
{[%clk 0:01:57.9]} 22... Rd6 {[%clk 0:00:55.6]} 23. Qxe5 {[%clk 0:01:53.6]}
23... Bf6 {[%clk 0:00:55.8]} 24. Qf4 {[%clk 0:01:49.8]} 24... Bxb2 {[%clk
0:00:48.8]} 25. Rab1 {[%clk 0:01:42]} 25... Rd1 {[%clk 0:00:47.7]} 26. Qxc7
{[%clk 0:01:20]} 26... Rxf1+ {[%clk 0:00:47.7]} 27. Rxf1 {[%clk 0:01:20.9]}
27... Rxc7 {[%clk 0:00:47.3]} 28. Bb6 {[%clk 0:01:05.6]} 28... Rxc2 {[%clk
0:00:47]} 29. h4 {[%clk 0:01:03.9]} 29... Bf6 {[%clk 0:00:27.2]} 30. g3 {[%clk
0:01:04.1]} 30... Be5 {[%clk 0:00:26.3]} 31. f4 {[%clk 0:01:02]} 31... Bc3
{[%clk 0:00:25.7]} 32. Rf3 {[%clk 0:00:58.1]} 32... f5 {[%clk 0:00:13]} 33. Rd3
{[%clk 0:00:55.4]} 33... Kh7 {[%clk 0:00:12.7]} 34. h5 {[%clk 0:00:40.1]} 34...
gxh5 {[%clk 0:00:09.2]} 35. Rd7+ {[%clk 0:00:40.1]} 35... Kg6 {[%clk 0:00:09.4]}
36. Rd6+ {[%clk 0:00:30.3]} 36... Kf7 {[%clk 0:00:08.3]} 37. Rd7+ {[%clk
0:00:28.9]} 37... Kg6 {[%clk 0:00:08.1]} 38. Rxb7 {[%clk 0:00:21.7]} 38... Be1
{[%clk 0:00:06.1]} 39. Rb8 {[%clk 0:00:18.9]} 39... Kf7 {[%clk 0:00:04.6]} 40.
Rb7+ {[%clk 0:00:15.3]} 40... Ke6 {[%clk 0:00:04.7]} 41. Rg7 {[%clk 0:00:15.5]}
41... Ra2 {[%clk 0:00:04.5]} 42. Bd8 {[%clk 0:00:09.2]} 42... Kd5 {[%clk
0:00:02.3]} 43. Re7 {[%clk 0:00:07.3]} 43... Bc3 {[%clk 0:00:01.5]} 44. Kg1
{[%clk 0:00:06]} 44... Bd4+ {[%clk 0:00:01.5]} 45. Kf1 {[%clk 0:00:06.4]} 45...
Rf2+ {[%clk 0:00:01.1]} 46. Ke1 {[%clk 0:00:06.9]} 46... Rg2 {[%clk 0:00:01.5]}
47. Rd7+ {[%clk 0:00:07]} 47... Ke4 {[%clk 0:00:01.7]} 48. Rd6 {[%clk 0:00:06]}
48... Kd3 {[%clk 0:00:01.5]} 0-1

[Event "Late-Titled-Tuesday-Blitz-January-30-2024"]
[Site "Chess.com"]
[Date "2024.01.30"]
[Round "9"]
[White "only_strong_moves"]
[Black "AradNazari"]
[Result "0-1"]
[WhiteElo "2552"]
[BlackElo "2715"]
[TimeControl "180+1"]
[EndTime "15:45:03 PST"]
[Termination "AradNazari won by checkmate"]

1. d4 {[%clk 0:02:58.8]} 1... Nf6 {[%clk 0:02:58.9]} 2. Nc3 {[%clk 0:02:59]}
2... d5 {[%clk 0:02:55.6]} 3. Bf4 {[%clk 0:02:59.3]} 3... c5 {[%clk 0:02:39.7]}
4. e4 {[%clk 0:02:58.7]} 4... Nxe4 {[%clk 0:02:34.3]} 5. Nxe4 {[%clk 0:02:58.1]}
5... dxe4 {[%clk 0:02:34.8]} 6. dxc5 {[%clk 0:02:59]} 6... Qa5+ {[%clk 0:02:35]}
7. c3 {[%clk 0:02:59.4]} 7... Qxc5 {[%clk 0:02:35.5]} 8. Qa4+ {[%clk 0:03:00]}
8... Nc6 {[%clk 0:02:30.7]} 9. Qxe4 {[%clk 0:03:00.2]} 9... Bf5 {[%clk
0:02:27.4]} 10. Qa4 {[%clk 0:02:54.1]} 10... Bd7 {[%clk 0:02:26.3]} 11. Nf3
{[%clk 0:02:48.3]} 11... e6 {[%clk 0:02:18.3]} 12. Rd1 {[%clk 0:02:45.2]} 12...
a6 {[%clk 0:01:47.7]} 13. Be3 {[%clk 0:02:31.8]} 13... Qa5 {[%clk 0:01:47.4]}
14. Qxa5 {[%clk 0:02:27.5]} 14... Nxa5 {[%clk 0:01:48.3]} 15. Ne5 {[%clk
0:02:28]} 15... Bb5 {[%clk 0:01:12.1]} 16. c4 {[%clk 0:02:18.4]} 16... Bb4+
{[%clk 0:01:09.3]} 17. Bd2 {[%clk 0:02:18]} 17... Bxd2+ {[%clk 0:01:04.2]} 18.
Rxd2 {[%clk 0:02:18.9]} 18... Ba4 {[%clk 0:00:48.8]} 19. b3 {[%clk 0:02:16.5]}
19... f6 {[%clk 0:00:49.4]} 20. Nd3 {[%clk 0:02:03.5]} 20... Bd7 {[%clk
0:00:42.4]} 21. Nc5 {[%clk 0:02:02.3]} 21... Bc8 {[%clk 0:00:43]} 22. g3 {[%clk
0:01:49.4]} 22... b6 {[%clk 0:00:40.7]} 23. Bg2 {[%clk 0:01:47.9]} 23... Ra7
{[%clk 0:00:41]} 24. Na4 {[%clk 0:01:45.1]} 24... b5 {[%clk 0:00:41.5]} 25. cxb5
{[%clk 0:01:17.3]} 25... axb5 {[%clk 0:00:42.4]} 26. Nc3 {[%clk 0:01:17.9]}
26... b4 {[%clk 0:00:41.3]} 27. Nb5 {[%clk 0:01:17.8]} 27... Rd7 {[%clk
0:00:41.8]} 28. Nd6+ {[%clk 0:01:17]} 28... Ke7 {[%clk 0:00:41.9]} 29. Ne4
{[%clk 0:01:04.1]} 29... Rxd2 {[%clk 0:00:36.6]} 30. Kxd2 {[%clk 0:01:05]} 30...
Bb7 {[%clk 0:00:34.8]} 31. Rc1 {[%clk 0:00:53.9]} 31... f5 {[%clk 0:00:25.3]}
32. Rc7+ {[%clk 0:00:53.9]} 32... Kd8 {[%clk 0:00:25.2]} 33. Rc5 {[%clk
0:00:54.2]} 33... fxe4 {[%clk 0:00:22.2]} 34. Rxa5 {[%clk 0:00:52.7]} 34... e3+
{[%clk 0:00:22.8]} 35. Kxe3 {[%clk 0:00:51.4]} 35... Bxg2 {[%clk 0:00:23.7]} 36.
f3 {[%clk 0:00:51.9]} 36... Ke7 {[%clk 0:00:23.1]} 37. Kf2 {[%clk 0:00:50.8]}
37... Bh1 {[%clk 0:00:19]} 38. Ra7+ {[%clk 0:00:36.4]} 38... Kf6 {[%clk
0:00:19.1]} 39. Rb7 {[%clk 0:00:30.4]} 39... Rc8 {[%clk 0:00:18.1]} 40. Rxb4
{[%clk 0:00:30.1]} 40... Rc2+ {[%clk 0:00:18.7]} 41. Kg1 {[%clk 0:00:30.7]}
41... Rc1+ {[%clk 0:00:12.1]} 42. Kf2 {[%clk 0:00:30.8]} 42... g5 {[%clk
0:00:12.6]} 43. a4 {[%clk 0:00:22.1]} 43... Rc2+ {[%clk 0:00:12.1]} 44. Ke3
{[%clk 0:00:21.8]} 44... Rc3+ {[%clk 0:00:12.2]} 45. Kd4 {[%clk 0:00:22.3]}
45... Rxf3 {[%clk 0:00:11.8]} 46. Rb8 {[%clk 0:00:22.8]} 46... e5+ {[%clk
0:00:09.9]} 47. Kc4 {[%clk 0:00:20.5]} 47... e4 {[%clk 0:00:09.1]} 48. a5 {[%clk
0:00:20.6]} 48... e3 {[%clk 0:00:07.9]} 49. Kd3 {[%clk 0:00:19.8]} 49... Bg2
{[%clk 0:00:04.5]} 50. a6 {[%clk 0:00:18.8]} 50... Bf1+ {[%clk 0:00:03.5]} 51.
Ke4 {[%clk 0:00:19]} 51... e2 {[%clk 0:00:03.7]} 52. Kxf3 {[%clk 0:00:16.4]}
52... e1=Q {[%clk 0:00:04]} 53. a7 {[%clk 0:00:16.4]} 53... Qe2# {[%clk
0:00:04.3]} 0-1